Workbook

Sheet 院系公示成绩模板
A1: 序号 | B1: 考生编号 | C1: 姓名 | D1: 专业代码 | E1: 专业名称 | F1: 初试成绩a | G1: 复试笔试成绩b1 | H1: 复试面试成绩b2 | I1: 复试成绩 b=（b1+b2） | J1: 初试权重成绩A=(a÷500)×100×50% | K1: 复试权重成绩B=(b÷200))×100×50% | L1: 考生最后成绩A+B | M1: 名次排序
A2: 1 | B2: 106344100207004 | C2: 杨帅 | D2: 100207 | E2: 影像医学与核医学 | F2: 329 | G2: 58.00 | H2: 90.00 | I2: =(G2+H2) -> 148.00 | J2: =F2/5*0.5 -> 32.90 | K2: =I2/2*0.5 -> 37.00 | L2: =J2+K2 -> 69.90 | M2: 1
A3: 2 | B3: 106344100207022 | C3: 龚斯睿 | D3: 100207 | E3: 影像医学与核医学 | F3: 313 | G3: 69.00 | H3: 74.40 | I3: =(G3+H3) -> 143.40 | J3: =F3/5*0.5 -> 31.30 | K3: =I3/2*0.5 -> 35.85 | L3: =J3+K3 -> 67.15 | M3: 2
A4: 3 | B4: 106344100207009 | C4: 韩若冰 | D4: 100207 | E4: 影像医学与核医学 | F4: 326 | G4: 65.00 | H4: 71.00 | I4: =(G4+H4) -> 136.00 | J4: =F4/5*0.5 -> 32.60 | K4: =I4/2*0.5 -> 34.00 | L4: =J4+K4 -> 66.60 | M4: 3
A5: 4 | B5: 106344105123106 | C5: 赵珂澜 | D5: 105123 | E5: 放射影像学 | F5: 390 | G5: 71.00 | H5: 91.40 | I5: =(G5+H5) -> 162.40 | J5: =F5/5*0.5 -> 39.00 | K5: =I5/2*0.5 -> 40.60 | L5: =J5+K5 -> 79.60 | M5: 1
A6: 5 | B6: 106344105123073 | C6: 曾潇 | D6: 105123 | E6: 放射影像学 | F6: 399 | G6: 62.00 | H6: 90.20 | I6: =(G6+H6) -> 152.20 | J6: =F6/5*0.5 -> 39.90 | K6: =I6/2*0.5 -> 38.05 | L6: =J6+K6 -> 77.95 | M6: 2
A7: 6 | B7: 106344105123085 | C7: 毛姣姣 | D7: 105123 | E7: 放射影像学 | F7: 395 | G7: 67.00 | H7: 83.00 | I7: 150.00 | J7: 39.50 | K7: 37.50 | L7: 77.00 | M7: 3
A8: 7 | B8: 106344105123122 | C8: 王钰琴 | D8: 105123 | E8: 放射影像学 | F8: 370 | G8: 70.00 | H8: 89.80 | I8: 159.80 | J8: 37.00 | K8: 39.95 | L8: 76.95 | M8: 4
A9: 8 | B9: 106344105123109 | C9: 李明韬 | D9: 105123 | E9: 放射影像学 | F9: 383 | G9: 66.00 | H9: 88.60 | I9: 154.60 | J9: 38.30 | K9: 38.65 | L9: 76.95 | M9: 5
A10: 9 | B10: 106344105123006 | C10: 杨洪安 | D10: 105123 | E10: 放射影像学 | F10: 397 | G10: 65.00 | H10: 83.80 | I10: 148.80 | J10: 39.70 | K10: 37.20 | L10: 76.90 | M10: 6
A11: 10 | B11: 106344105123009 | C11: 杨维 | D11: 105123 | E11: 放射影像学 | F11: 370 | G11: 67.00 | H11: 91.40 | I11: 158.40 | J11: 37.00 | K11: 39.60 | L11: 76.60 | M11: 7
A12: 11 | B12: 106344105123039 | C12: 李梦媛 | D12: 105123 | E12: 放射影像学 | F12: 379 | G12: 71.00 | H12: 83.00 | I12: 154.00 | J12: 37.90 | K12: 38.50 | L12: 76.40 | M12: 8
A13: 12 | B13: 106344105123074 | C13: 王昱心 | D13: 105123 | E13: 放射影像学 | F13: 369 | G13: 66.00 | H13: 85.00 | I13: 151.00 | J13: 36.90 | K13: 37.75 | L13: 74.65 | M13: 9
A14: 13 | B14: 106344105123052 | C14: 蒋海燕 | D14: 105123 | E14: 放射影像学 | F14: 376 | G14: 62.00 | H14: 85.20 | I14: 147.20 | J14: 37.60 | K14: 36.80 | L14: 74.40 | M14: 10
A15: 14 | B15: 106344105123086 | C15: 何惠欣 | D15: 105123 | E15: 放射影像学 | F15: 378 | G15: 65.00 | H15: 80.60 | I15: 145.60 | J15: 37.80 | K15: 36.40 | L15: 74.20 | M15: 11
A16: 15 | B16: 106344105123108 | C16: 陈安琪 | D16: 105123 | E16: 放射影像学 | F16: 378 | G16: 59.00 | H16: 85.80 | I16: 144.80 | J16: 37.80 | K16: 36.20 | L16: 74.00 | M16: 12
A17: 16 | B17: 106344105123044 | C17: 李沛霖 | D17: 105123 | E17: 放射影像学 | F17: 373 | G17: 64.00 | H17: 80.00 | I17: 144.00 | J17: 37.30 | K17: 36.00 | L17: 73.30 | M17: 13
A18: 17 | B18: 106344105123029 | C18: 张柳梅 | D18: 105123 | E18: 放射影像学 | F18: 379 | G18: 62.00 | H18: 79.60 | I18: 141.60 | J18: 37.90 | K18: 35.40 | L18: 73.30 | M18: 14
A19: 18 | B19: 106344105123093 | C19: 陈城 | D19: 105123 | E19: 放射影像学 | F19: 358 | G19: 64.00 | H19: 85.80 | I19: 149.80 | J19: 35.80 | K19: 37.45 | L19: 73.25 | M19: 15
A20: 19 | B20: 106344105123049 | C20: 庞彩凤 | D20: 105123 | E20: 放射影像学 | F20: 366 | G20: 60.00 | H20: 85.60 | I20: 145.60 | J20: 36.60 | K20: 36.40 | L20: 73.00 | M20: 16
A21: 20 | B21: 106344105123048 | C21: 符光 | D21: 105123 | E21: 放射影像学 | F21: 355 | G21: 64.00 | H21: 84.80 | I21: 148.80 | J21: 35.50 | K21: 37.20 | L21: 72.70 | M21: 17
A22: 21 | B22: 106344105123097 | C22: 李海瑞 | D22: 105123 | E22: 放射影像学 | F22: 357 | G22: 63.00 | H22: 83.20 | I22: 146.20 | J22: 35.70 | K22: 36.55 | L22: 72.25 | M22: 18
A23: 22 | B23: 106344105123137 | C23: 赖雯静 | D23: 105123 | E23: 放射影像学 | F23: 339 | G23: 68.00 | H23: 85.20 | I23: 153.20 | J23: 33.90 | K23: 38.30 | L23: 72.20 | M23: 19
A24: 23 | B24: 106344105123095 | C24: 陈林霞 | D24: 105123 | E24: 放射影像学 | F24: 351 | G24: 68.00 | H24: 80.40 | I24: 148.40 | J24: 35.10 | K24: 37.10 | L24: 72.20 | M24: 20
A25: 24 | B25: 106344105123100 | C25: 何鹏程 | D25: 105123 | E25: 放射影像学 | F25: 357 | G25: 63.00 | H25: 80.00 | I25: 143.00 | J25: 35.70 | K25: 35.75 | L25: 71.45 | M25: 21
A26: 25 | B26: 106344105123107 | C26: 缪全有 | D26: 105123 | E26: 放射影像学 | F26: 365 | G26: 64.00 | H26: 74.80 | I26: 138.80 | J26: 36.50 | K26: 34.70 | L26: 71.20 | M26: 22
A27: 26 | B27: 106344105123079 | C27: 刘星宇 | D27: 105123 | E27: 放射影像学 | F27: 340 | G27: 66.00 | H27: 82.60 | I27: 148.60 | J27: 34.00 | K27: 37.15 | L27: 71.15 | M27: 23
A28: 27 | B28: 106344105123078 | C28: 王浩宇 | D28: 105123 | E28: 放射影像学 | F28: 347 | G28: 64.00 | H28: 80.60 | I28: 144.60 | J28: 34.70 | K28: 36.15 | L28: 70.85 | M28: 24
A29: 28 | B29: 106344105123063 | C29: 王熙 | D29: 105123 | E29: 放射影像学 | F29: 354 | G29: 58.00 | H29: 82.60 | I29: 140.60 | J29: 35.40 | K29: 35.15 | L29: 70.55 | M29: 25
A30: 29 | B30: 106344105123116 | C30: 龚新宗 | D30: 105123 | E30: 放射影像学 | F30: 349 | G30: 62.00 | H30: 79.60 | I30: 141.60 | J30: 34.90 | K30: 35.40 | L30: 70.30 | M30: 26
A31: 30 | B31: 106344105123023 | C31: 唐钰清 | D31: 105123 | E31: 放射影像学 | F31: 356 | G31: 56.00 | H31: 81.60 | I31: 137.60 | J31: 35.60 | K31: 34.40 | L31: 70.00 | M31: 27
A32: 31 | B32: 106344105123075 | C32: 钱爽 | D32: 105123 | E32: 放射影像学 | F32: 345 | G32: 61.00 | H32: 80.80 | I32: 141.80 | J32: 34.50 | K32: 35.45 | L32: 69.95 | M32: 28
A33: 32 | B33: 106344105123047 | C33: 涂昕玥 | D33: 105123 | E33: 放射影像学 | F33: 332 | G33: 68.00 | H33: 74.80 | I33: 142.80 | J33: 33.20 | K33: 35.70 | L33: 68.90 | M33: 29
A34: 33 | B34: 106344105123110 | C34: 李晨阳 | D34: 105123 | E34: 放射影像学 | F34: 351 | G34: 57.00 | H34: 76.60 | I34: 133.60 | J34: 35.10 | K34: 33.40 | L34: 68.50 | M34: 30
A35: 34 | B35: 106344105123015 | C35: 杨俨入 | D35: 105123 | E35: 放射影像学 | F35: 335 | G35: 59.00 | H35: 80.20 | I35: 139.20 | J35: 33.50 | K35: 34.80 | L35: 68.30 | M35: 31
A36: 35 | B36: 106344105123013 | C36: 陈锦瑶 | D36: 105123 | E36: 放射影像学 | F36: 332 | G36: 58.00 | H36: 80.40 | I36: 138.40 | J36: 33.20 | K36: 34.60 | L36: 67.80 | M36: 32
A37: 36 | B37: 106344105123057 | C37: 窦睿珂 | D37: 105123 | E37: 放射影像学 | F37: 330 | G37: 55.00 | H37: 83.20 | I37: 138.20 | J37: 33.00 | K37: 34.55 | L37: 67.55 | M37: 33
A38: 37 | B38: 106344105123135 | C38: 曾靖雯 | D38: 105123 | E38: 放射影像学 | F38: 356 | G38: 49.00 | H38: 77.60 | I38: 126.60 | J38: 35.60 | K38: 31.65 | L38: 67.25 | M38: 34
A39: 38 | B39: 106344105123111 | C39: 张艺端 | D39: 105123 | E39: 放射影像学 | F39: 339 | G39: 51.00 | H39: 81.20 | I39: 132.20 | J39: 33.90 | K39: 33.05 | L39: 66.95 | M39: 35
A40: 39 | B40: 106344105123115 | C40: 廖明瑶 | D40: 105123 | E40: 放射影像学 | F40: 340 | G40: 52.00 | H40: 79.60 | I40: 131.60 | J40: 34.00 | K40: 32.90 | L40: 66.90 | M40: 36
A41: 40 | B41: 106344105123061 | C41: 吕佳俊 | D41: 105123 | E41: 放射影像学 | F41: 330 | G41: 53.00 | H41: 80.80 | I41: 133.80 | J41: 33.00 | K41: 33.45 | L41: 66.45 | M41: 37
A42: 41 | B42: 106344105123040 | C42: 梅驰钰 | D42: 105123 | E42: 放射影像学 | F42: 325 | G42: 62.00 | H42: 73.40 | I42: 135.40 | J42: 32.50 | K42: 33.85 | L42: 66.35 | M42: 38
A43: 42 | B43: 106344105123124 | C43: 杨雅岚 | D43: 105123 | E43: 放射影像学 | F43: 337 | G43: 55.00 | H43: 70.20 | I43: 125.20 | J43: 33.70 | K43: 31.30 | L43: 65.00 | M43: 39
A44: 43 | B44: 106344105123068 | C44: 苏开翔 | D44: 105123 | E44: 放射影像学 | F44: 326 | G44: 53.00 | H44: 75.80 | I44: 128.80 | J44: 32.60 | K44: 32.20 | L44: 64.80 | M44: 40
A45: 44 | B45: 106344105123001 | C45: 何肖 | D45: 105123 | E45: 放射影像学 | F45: 333 | G45: 62.00 | H45: 62.20 | I45: 124.20 | J45: 33.30 | K45: 31.05 | L45: 64.35 | M45: 41
A46: 45 | B46: 106344105123020 | C46: 肖仁杰 | D46: 105123 | E46: 放射影像学 | F46: 335 | G46: 43.00 | H46: 75.60 | I46: 118.60 | J46: 33.50 | K46: 29.65 | L46: 63.15 | M46: 不合格
A47: 46 | B47: 106344105123038 | C47: 赵雨 | D47: 105123 | E47: 放射影像学 | F47: 326 | G47: 31.00 | H47: 79.20 | I47: 110.20 | J47: 32.60 | K47: 27.55 | L47: 60.15 | M47: 不合格
A48: 47 | B48: 106344105123017 | C48: 任柏鸿 | D48: 105123 | E48: 放射影像学 | F48: 328 | G48: 39.00 | H48: 57.40 | I48: 96.40 | J48: 32.80 | K48: 24.10 | L48: 56.90 | M48: 不合格
A49: 48 | B49: 106344105123003 | C49: 蒋媛媛 | D49: 105123 | E49: 放射影像学 | F49: 328 | G49: 0.00 | H49: 0.00 | I49: 0.00 | J49: 32.80 | K49: 0.00 | L49: 32.80 | M49: 缺考
A50: 49 | B50: 106344105124007 | C50: 张雁秀 | D50: 105124 | E50: 超声医学 | F50: 370 | G50: 94.50 | H50: 71.20 | I50: 165.70 | J50: 37.00 | K50: 41.43 | L50: 78.43 | M50: 1
A51: 50 | B51: 106344105124069 | C51: 刘瀚阳 | D51: 105124 | E51: 超声医学 | F51: 367 | G51: 88.50 | H51: 69.40 | I51: 157.90 | J51: 36.70 | K51: 39.48 | L51: 76.18 | M51: 2
A52: 51 | B52: 106344105124071 | C52: 罗肖 | D52: 105124 | E52: 超声医学 | F52: 358 | G52: 91.50 | H52: 69.20 | I52: 160.70 | J52: 35.80 | K52: 40.18 | L52: 75.98 | M52: 3
A53: 52 | B53: 106344105124034 | C53: 冷溢寒 | D53: 105124 | E53: 超声医学 | F53: 347 | G53: 85.50 | H53: 77.80 | I53: 163.30 | J53: 34.70 | K53: 40.83 | L53: 75.53 | M53: 4
A54: 53 | B54: 106344105124068 | C54: 秦金凤 | D54: 105124 | E54: 超声医学 | F54: 362 | G54: 86.50 | H54: 69.20 | I54: 155.70 | J54: 36.20 | K54: 38.93 | L54: 75.13 | M54: 5
A55: 54 | B55: 106344105124027 | C55: 袁薇 | D55: 105124 | E55: 超声医学 | F55: 354 | G55: 81.50 | H55: 75.60 | I55: 157.10 | J55: 35.40 | K55: 39.28 | L55: 74.68 | M55: 6
A56: 55 | B56: 106344105124066 | C56: 涂玲 | D56: 105124 | E56: 超声医学 | F56: 352 | G56: 85.00 | H56: 72.40 | I56: 157.40 | J56: 35.20 | K56: 39.35 | L56: 74.55 | M56: 7
A57: 56 | B57: 106344105124064 | C57: 王廷文 | D57: 105124 | E57: 超声医学 | F57: 380 | G57: 78.50 | H57: 67.60 | I57: 146.10 | J57: 38.00 | K57: 36.53 | L57: 74.53 | M57: 8
A58: 57 | B58: 106344105124101 | C58: 韩丹 | D58: 105124 | E58: 超声医学 | F58: 349 | G58: 84.00 | H58: 73.20 | I58: 157.20 | J58: 34.90 | K58: 39.30 | L58: 74.20 | M58: 9
A59: 58 | B59: 106344105124030 | C59: 何柯霏 | D59: 105124 | E59: 超声医学 | F59: 356 | G59: 82.00 | H59: 70.20 | I59: 152.20 | J59: 35.60 | K59: 38.05 | L59: 73.65 | M59: 10
A60: 59 | B60: 106344105124102 | C60: 朱龙 | D60: 105124 | E60: 超声医学 | F60: 349 | G60: 76.00 | H60: 78.40 | I60: 154.40 | J60: 34.90 | K60: 38.60 | L60: 73.50 | M60: 11
A61: 60 | B61: 106344105124060 | C61: 魏诗雨 | D61: 105124 | E61: 超声医学 | F61: 365 | G61: 72.50 | H61: 68.00 | I61: 140.50 | J61: 36.50 | K61: 35.13 | L61: 71.63 | M61: 12
A62: 61 | B62: 106344105124014 | C62: 吴霜 | D62: 105124 | E62: 超声医学 | F62: 335 | G62: 76.50 | H62: 74.40 | I62: 150.90 | J62: 33.50 | K62: 37.73 | L62: 71.23 | M62: 13
A63: 62 | B63: 106344105124080 | C63: 王晓庆 | D63: 105124 | E63: 超声医学 | F63: 339 | G63: 77.00 | H63: 70.60 | I63: 147.60 | J63: 33.90 | K63: 36.90 | L63: 70.80 | M63: 14
A64: 63 | B64: 106344105124073 | C64: 吴雨欣 | D64: 105124 | E64: 超声医学 | F64: 335 | G64: 80.50 | H64: 68.60 | I64: 149.10 | J64: 33.50 | K64: 37.28 | L64: 70.78 | M64: 15
A65: 64 | B65: 106344105124008 | C65: 钟小雨 | D65: 105124 | E65: 超声医学 | F65: 362 | G65: 69.50 | H65: 68.40 | I65: 137.90 | J65: 36.20 | K65: 34.48 | L65: 70.68 | M65: 16
A66: 65 | B66: 106344105124093 | C66: 邓舒丹 | D66: 105124 | E66: 超声医学 | F66: 353 | G66: 66.50 | H66: 69.80 | I66: 136.30 | J66: 35.30 | K66: 34.08 | L66: 69.38 | M66: 17
A67: 66 | B67: 106344105124082 | C67: 刘星瑶 | D67: 105124 | E67: 超声医学 | F67: 335 | G67: 79.50 | H67: 63.80 | I67: 143.30 | J67: 33.50 | K67: 35.83 | L67: 69.33 | M67: 18
A68: 67 | B68: 106344105124063 | C68: 李可艺 | D68: 105124 | E68: 超声医学 | F68: 340 | G68: 69.00 | H68: 57.40 | I68: 126.40 | J68: 34.00 | K68: 31.60 | L68: 65.60 | M68: 19
A69: 68 | B69: 106344105124018 | C69: 夏凤玲 | D69: 105124 | E69: 超声医学 | F69: 340 | G69: 63.50 | H69: 51.20 | I69: 114.70 | J69: 34.00 | K69: 28.68 | L69: 62.68 | M69: 不合格
A70: 69 | B70: 106344105124067 | C70: 贾宏轩 | D70: 105124 | E70: 超声医学 | F70: 350 | G70: 56.50 | H70: 49.80 | I70: =(G70+H70) -> 106.30 | J70: =F70/5*0.5 -> 35.00 | K70: =I70/2*0.5 -> 26.58 | L70: =J70+K70 -> 61.58 | M70: 不合格
A71: 70 | B71: 106344105124099 | C71: 曾宏毅 | D71: 105124 | E71: 超声医学 | F71: 336 | G71: 0.00 | H71: 0.00 | I71: 0.00 | J71: 33.60 | K71: 0.00 | L71: 33.60 | M71: 缺考
A72: 71 | B72: 106344105125007 | C72: 张力月 | D72: 105125 | E72: 核医学 | F72: 373 | G72: 62.00 | H72: 75.20 | I72: 137.20 | J72: 37.30 | K72: 34.30 | L72: 71.60 | M72: 1
A73: 72 | B73: 106344105125011 | C73: 唐明旭 | D73: 105125 | E73: 核医学 | F73: 333 | G73: 65.00 | H73: 79.00 | I73: 144.00 | J73: 33.30 | K73: 36.00 | L73: 69.30 | M73: 2
A74: 73 | B74: 106344105125010 | C74: 王兴傲 | D74: 105125 | E74: 核医学 | F74: 330 | G74: 60.00 | H74: 73.80 | I74: 133.80 | J74: 33.00 | K74: 33.45 | L74: 66.45 | M74: 3
A75: 74 | B75: 106344105800103 | C75: 李颖 | D75: 105800 | E75: 医学影像技术 | F75: 379 | G75: 86.00 | H75: 84.60 | I75: 170.60 | J75: 37.90 | K75: 42.65 | L75: 80.55 | M75: 1
A76: 75 | B76: 106344105800101 | C76: 李妍婷 | D76: 105800 | E76: 医学影像技术 | F76: 391 | G76: 72.00 | H76: 79.70 | I76: 151.70 | J76: 39.10 | K76: 37.93 | L76: 77.03 | M76: 2
A77: 76 | B77: 106344105800107 | C77: 邓萍 | D77: 105800 | E77: 医学影像技术 | F77: 377 | G77: 74.00 | H77: 78.50 | I77: 152.50 | J77: 37.70 | K77: 38.13 | L77: 75.83 | M77: 3
A78: 77 | B78: 106344105800115 | C78: 罗靖贤 | D78: 105800 | E78: 医学影像技术 | F78: 358 | G78: 66.00 | H78: 85.10 | I78: 151.10 | J78: 35.80 | K78: 37.78 | L78: 73.58 | M78: 4
A79: 78 | B79: 106344105800075 | C79: 周梦妮 | D79: 105800 | E79: 医学影像技术 | F79: 344 | G79: 71.00 | H79: 73.50 | I79: 144.50 | J79: 34.40 | K79: 36.13 | L79: 70.53 | M79: 5
A80: 79 | B80: 106344105800102 | C80: 李航宇 | D80: 105800 | E80: 医学影像技术 | F80: 368 | G80: 56.00 | H80: 76.40 | I80: 132.40 | J80: 36.80 | K80: 33.10 | L80: 69.90 | M80: 6
A81: 80 | B81: 106344105800082 | C81: 熊园 | D81: 105800 | E81: 医学影像技术 | F81: 341 | G81: 72.00 | H81: 70.50 | I81: 142.50 | J81: 34.10 | K81: 35.63 | L81: 69.73 | M81: 7
A82: 81 | B82: 106344105800071 | C82: 宋学亮 | D82: 105800 | E82: 医学影像技术 | F82: 333 | G82: 65.00 | H82: 77.90 | I82: 142.90 | J82: 33.30 | K82: 35.73 | L82: 69.03 | M82: 8
A83: 82 | B83: 106344105800083 | C83: 朱之珺 | D83: 105800 | E83: 医学影像技术 | F83: 357 | G83: 55.00 | H83: 78.00 | I83: 133.00 | J83: 35.70 | K83: 33.25 | L83: 68.95 | M83: 9
A84: 83 | B84: 106344105800070 | C84: 彭诗集 | D84: 105800 | E84: 医学影像技术 | F84: 335 | G84: 65.00 | H84: 71.70 | I84: 136.70 | J84: 33.50 | K84: 34.18 | L84: 67.68 | M84: 10
A85: 84 | B85: 106344105800085 | C85: 谢俊男 | D85: 105800 | E85: 医学影像技术 | F85: 340 | G85: 66.00 | H85: 68.40 | I85: 134.40 | J85: 34.00 | K85: 33.60 | L85: 67.60 | M85: 11
A86: 85 | B86: 106344105800113 | C86: 张羽 | D86: 105800 | E86: 医学影像技术 | F86: 343 | G86: 74.00 | H86: 55.80 | I86: 129.80 | J86: 34.30 | K86: 32.45 | L86: 66.75 | M86: 12
A87: 86 | B87: 106344105800135 | C87: 田玲 | D87: 105800 | E87: 医学影像技术 | F87: 333 | G87: 66.00 | H87: 66.30 | I87: 132.30 | J87: 33.30 | K87: 33.08 | L87: 66.38 | M87: 13
A88: 87 | B88: 106344105800137 | C88: 吴旭 | D88: 105800 | E88: 医学影像技术 | F88: 340 | G88: 62.00 | H88: 65.50 | I88: 127.50 | J88: 34.00 | K88: 31.88 | L88: 65.88 | M88: 14
A89: 88 | B89: 106344105800045 | C89: 刘茂玲 | D89: 105800 | E89: 医学影像技术 | F89: 336 | G89: 60.00 | H89: 62.40 | I89: 122.40 | J89: 33.60 | K89: 30.60 | L89: 64.20 | M89: 15
A90: 89 | B90: 106344105800109 | C90: 谢卓颖 | D90: 105800 | E90: 医学影像技术 | F90: 336 | G90: 57.00 | H90: 60.40 | I90: 117.40 | J90: 33.60 | K90: 29.35 | L90: 62.95 | M90: 不合格
A91: 90 | B91: 106344105800148 | C91: 李泳汐 | D91: 105800 | E91: 医学工程技术 | F91: 377 | G91: 75.00 | H91: 80.80 | I91: =(G91+H91) -> 155.80 | J91: =F91/5*0.5 -> 37.70 | K91: =I91/2*0.5 -> 38.95 | L91: =J91+K91 -> 76.65 | M91: 1
A92: 91 | B92: 106344105800144 | C92: 郭佳成 | D92: 105800 | E92: 医学工程技术 | F92: 375 | G92: 68.00 | H92: 73.40 | I92: 141.40 | J92: 37.50 | K92: 35.35 | L92: 72.85 | M92: 2
A93: 92 | B93: 106344105800143 | C93: 黄晓云 | D93: 105800 | E93: 医学工程技术 | F93: 330 | G93: 60.00 | H93: 69.60 | I93: 129.60 | J93: 33.00 | K93: 32.40 | L93: 65.40 | M93: 3
A94: 93 | B94: 106344105800147 | C94: 肖军 | D94: 105800 | E94: 医学工程技术 | F94: 324 | G94: 45.00 | H94: 75.40 | I94: 120.40 | J94: 32.40 | K94: 30.10 | L94: 62.50 | M94: 4
A95: 94 | B95: 106344105800140 | C95: 庞涛 | D95: 105800 | E95: 医学工程技术 | F95: 315 | G95: 56.00 | H95: 66.60 | I95: 122.60 | J95: 31.50 | K95: 30.65 | L95: 62.15 | M95: 5
A96: 95 | B96: 106344105800139 | C96: 黄欣怡 | D96: 105800 | E96: 医学工程技术 | F96: 323 | G96: 0.00 | H96: 0.00 | I96: 0.00 | J96: 32.30 | K96: 0.00 | L96: 32.30 | M96: 缺考
